[Event "FIDE WCCC Girls-10 2024"]
[Site "Montesilvano"]
[Date "2024.11.18"]
[Round "3.1"]
[White "Berikkyzy Alanna"]
[Black "Mohamed Ahmed, Ghidaa"]
[Result "1-0"]
[ECO "C41"]
[WhiteElo "2043"]
[BlackElo "1638"]
[PlyCount "83"]
[EventDate "2024.11.18"]
[EventType "swiss"]
[EventCountry "ITA"]
[TimeControl "5400+30"]

1. e4 {[%emt 0:00:17]} e5 {[%emt 0:00:06]} 2. Nf3 {[%emt 0:00:34]} d6 {[%emt 0:00:02]} 3. d4 {[%emt 0:00:38]} exd4 {[%emt 0:00:15]} 4. Qxd4 {[%emt 0:00:35]} Nf6 {[%emt 0:00:38]} 5. Nc3 {[%emt 0:00:39]} Be7 {[%emt 0:01:44]} 6. Bf4 {[%emt 0:00:40]} a6 {[%emt 0:02:25]} 7. O-O-O {[%emt 0:00:57]} O-O {[%emt 0:01:45]} 8. h3 {[%emt 0:00:50]} b5 {[%emt 0:05:16]} 9. g4 {[%emt 0:04:36]} Nc6 {[%emt 0:02:05]} 10. Qe3 {[%emt 0:02:17]} Nd7 {[%emt 0:07:16]} 11. h4 {[%emt 0:01:45]} Nb6 {[%emt 0:03:09]} 12. g5 {[%emt 0:01:25]} b4 {[%emt 0:00:34]} 13. Nd5 {[%emt 0:03:29]} Nxd5 {[%emt 0:03:38]} 14. exd5 {[%emt 0:00:27]} Na7 {[%emt 0:06:03]} 15. h5 {[%emt 0:01:23]} Bg4 {[%emt 0:11:37]} 16. Be2 {[%emt 0:01:35]} Bxf3 {[%emt 0:04:40]} 17. Bxf3 {[%emt 0:00:22]} a5 {[%emt 0:04:30]} 18. g6 {[%emt 0:04:04]} h6 {[%emt 0:10:12]} 19. Kb1 {[%emt 0:02:20]} Bg5 {[%emt 0:00:58]} 20. Bxg5 {[%emt 0:03:12]} Qxg5 {[%emt 0:00:22]} 21. Qd3 {[%emt 0:07:56]} f6 {[%emt 0:12:09]} 22. Rhg1 {[%emt 0:03:45]} Qh4 {[%emt 0:03:25]} 23. Rg3 {[%emt 0:05:12]} Qh2 {[%emt 0:00:52]} 24. Qd4 {[%emt 0:14:50]} Nb5 {[%emt 0:03:09]} 25. Qd2 {[%emt 0:00:18]} Qh4 {[%emt 0:02:08]} 26. Qd3 {[%emt 0:02:31]} Na7 {[%emt 0:04:11]} 27. Bg4 {[%emt 0:00:44]} f5 {[%emt 0:02:25]} 28. Bxf5 {[%emt 0:02:04]} Qxh5 {[%emt 0:02:43]} 29. Be6+ {[%emt 0:01:26]} Kh8 {[%emt 0:00:21]} 30. f3 {[%emt 0:00:46]} Qe5 {[%emt 0:01:55]} 31. Rh3 {[%emt 0:02:25]} Qg5 {[%emt 0:02:19]} 32. Rdh1 {[%emt 0:01:06]} Rfe8 {[%emt 0:02:28]} 33. Rh5 {[%emt 0:01:14]} Qf4 {[%emt 0:00:11]} 34. Rf5 {[%emt 0:00:52]} Qg3 {[%emt 0:00:34]} 35. Rf7 {[%emt 0:00:25]} Rxe6 {[%emt 0:00:58]} 36. dxe6 {[%emt 0:00:11]} Qg2 {[%emt 0:00:49]} 37. Rd1 {[%emt 0:00:19]} Nc6 {[%emt 0:00:32]} 38. Qa6 {[%emt 0:01:13]} Qxg6 {[%emt 0:00:34]} 39. Qxa8+ {[%emt 0:00:06]} Kh7 {[%emt 0:00:06]} 40. Qxc6 {[%emt 0:00:15]} Qxe6 {[%emt 0:00:05]} 41. Qxc7 {[%emt 0:00:05]} Qe5 {[%emt 0:00:20]} 42. f4 {[%emt 0:00:10]} 1-0

[Event "FIDE WCCC Girls-10 2024"]
[Site "Montesilvano"]
[Date "2024.11.18"]
[Round "3.2"]
[White "Sholpanbek, Zhansaya"]
[Black "Yunker, Alisa Genrietta"]
[Result "1-0"]
[ECO "B11"]
[WhiteElo "1657"]
[BlackElo "1872"]
[PlyCount "175"]
[EventDate "2024.11.18"]
[EventType "swiss"]
[EventCountry "ITA"]
[TimeControl "5400+30"]

1. e4 {[%emt 0:00:07]} c6 {[%emt 0:00:02]} 2. Nf3 {[%emt 0:00:13]} d5 {[%emt 0:00:04]} 3. Nc3 {[%emt 0:00:05]} dxe4 {[%emt 0:00:03]} 4. Nxe4 {[%emt 0:00:11]} Nf6 {[%emt 0:00:01]} 5. Nxf6+ {[%emt 0:00:22]} exf6 {[%emt 0:00:01]} 6. Bc4 {[%emt 0:01:07]} Bd6 {[%emt 0:00:06]} 7. Qe2+ {[%emt 0:00:23]} Qe7 {[%emt 0:00:08]} 8. Qxe7+ {[%emt 0:00:23]} Kxe7 {[%emt 0:00:01]} 9. O-O {[%emt 0:00:46]} Be6 {[%emt 0:01:13]} 10. Re1 {[%emt 0:00:54]} Kd7 {[%emt 0:02:02]} 11. Bf1 {[%emt 0:00:36]} c5 {[%emt 0:05:45]} 12. d4 {[%emt 0:00:43]} Nc6 {[%emt 0:14:04]} 13. Be3 {[%emt 0:02:30]} cxd4 {[%emt 0:02:57]} 14. Nxd4 {[%emt 0:00:13]} Nxd4 {[%emt 0:00:04]} 15. Bxd4 {[%emt 0:00:06]} Kc7 {[%emt 0:00:03]} 16. a4 {[%emt 0:01:22]} Rhd8 {[%emt 0:01:06]} 17. Rad1 {[%emt 0:01:04]} b6 {[%emt 0:05:13]} 18. Be2 {[%emt 0:05:01]} Bc5 {[%emt 0:01:08]} 19. Bxc5 {[%emt 0:02:10]} bxc5 {[%emt 0:00:01]} 20. b3 {[%emt 0:06:53]} Rd4 {[%emt 0:02:04]} 21. Rxd4 {[%emt 0:03:20]} cxd4 {[%emt 0:04:59]} 22. Bd3 {[%emt 0:00:10]} Rd8 {[%emt 0:00:11]} 23. Kf1 {[%emt 0:03:27]} Kd6 {[%emt 0:00:24]} 24. Ke2 {[%emt 0:00:44]} Kc5 {[%emt 0:00:08]} 25. Kd2 {[%emt 0:00:09]} h6 {[%emt 0:01:18]} 26. f4 {[%emt 0:01:52]} Rd5 {[%emt 0:10:06]} 27. Be4 {[%emt 0:14:35]} Rd6 {[%emt 0:11:00]} 28. f5 {[%emt 0:01:22]} Bc8 {[%emt 0:01:19]} 29. Bd3 {[%emt 0:01:12]} Rd5 {[%emt 0:01:49]} 30. Re7 {[%emt 0:08:02]} Rd7 {[%emt 0:07:04]} 31. Re8 {[%emt 0:00:08]} Bb7 {[%emt 0:00:06]} 32. g3 {[%emt 0:00:30]} Kd6 {[%emt 0:06:22]} 33. Rg8 {[%emt 0:01:25]} Ke5 {[%emt 0:00:07]} 34. Rxg7 {[%emt 0:02:07]} Be4 {[%emt 0:00:43]} 35. Rh7 {[%emt 0:01:06]} Bxf5 {[%emt 0:01:26]} 36. Rxh6 {[%emt 0:01:40]} Bg4 {[%emt 0:00:21]} 37. h3 {[%emt 0:01:03]} Bf3 {[%emt 0:00:06]} 38. h4 {[%emt 0:01:00]} Rd8 {[%emt 0:00:16]} 39. Rh7 {[%emt 0:01:44]} Rg8 {[%emt 0:00:11]} 40. Rxf7 {[%emt 0:00:43]} Rxg3 {[%emt 0:00:12]} 41. Rxa7 {[%emt 0:00:28]} Rg1 {[%emt 0:04:02]} 42. Re7+ {[%emt 0:03:30]} Kf4 {[%emt 0:01:05]} 43. Re1 {[%emt 0:00:37]} Rg2+ {[%emt 0:00:50]} 44. Be2 {[%emt 0:02:52]} f5 {[%emt 0:02:35]} 45. a5 {[%emt 0:03:45]} Kg3 {[%emt 0:02:27]} 46. h5 {[%emt 0:02:21]} Bxh5 {[%emt 0:01:33]} 47. a6 {[%emt 0:00:06]} Bf3 {[%emt 0:00:12]} 48. a7 {[%emt 0:01:05]} Ba8 {[%emt 0:00:21]} 49. Rf1 {[%emt 0:02:18]} f4 {[%emt 0:00:10]} 50. Ke1 {[%emt 0:00:28]} Rh2 {[%emt 0:03:02]} 51. Rf3+ {[%emt 0:08:36]} Bxf3 {[%emt 0:06:14]} 52. Bxf3 {[%emt 0:00:05]} Kxf3 {[%emt 0:00:34]} 53. a8=Q+ {[%emt 0:00:06]} Kg4 {[%emt 0:00:09]} 54. Qe4 {[%emt 0:02:02]} Kg3 {[%emt 0:00:20]} 55. Qxd4 {[%emt 0:00:49]} Rh1+ {[%emt 0:00:15]} 56. Kd2 {[%emt 0:00:07]} f3 {[%emt 0:00:05]} 57. Qe5+ {[%emt 0:00:15]} Kg2 {[%emt 0:00:21]} 58. Qg5+ {[%emt 0:00:43]} Kf2 {[%emt 0:00:36]} 59. b4 {[%emt 0:01:02]} Rh2 {[%emt 0:01:18]} 60. Kd3 {[%emt 0:02:20]} Rh3 {[%emt 0:02:19]} 61. Ke4 {[%emt 0:05:39]} Rg3 {[%emt 0:00:45]} 62. Qf4 {[%emt 0:01:07]} Kg2 {[%emt 0:02:28]} 63. Ke3 {[%emt 0:01:44]} Rg8 {[%emt 0:01:45]} 64. Qxf3+ {[%emt 0:00:07]} Kg1 {[%emt 0:00:04]} 65. Qd1+ {[%emt 0:00:16]} Kh2 {[%emt 0:00:07]} 66. Qd6+ {[%emt 0:00:07]} Kg1 {[%emt 0:00:04]} 67. Kf3 {[%emt 0:01:27]} Kh1 {[%emt 0:00:12]} 68. Qh6+ {[%emt 0:01:13]} Kg1 {[%emt 0:00:02]} 69. Qc1+ {[%emt 0:00:09]} Kh2 {[%emt 0:00:05]} 70. Qf4+ {[%emt 0:00:03]} Kh1 {[%emt 0:00:06]} 71. Qh6+ {[%emt 0:01:05]} Kg1 {[%emt 0:00:39]} 72. b5 {[%emt 0:00:05]} Rg2 {[%emt 0:01:18]} 73. Qh4 {[%emt 0:01:05]} Rxc2 {[%emt 0:00:50]} 74. Qe1+ {[%emt 0:00:05]} Kh2 {[%emt 0:00:05]} 75. Qf2+ {[%emt 0:00:05]} Rxf2+ {[%emt 0:00:04]} 76. Kxf2 {[%emt 0:00:03]} Kh3 {[%emt 0:00:05]} 77. b6 {[%emt 0:00:05]} Kg4 {[%emt 0:00:02]} 78. b7 {[%emt 0:00:05]} Kf5 {[%emt 0:00:03]} 79. b8=Q {[%emt 0:00:06]} Ke4 {[%emt 0:00:04]} 80. Qb3 {[%emt 0:00:12]} Kd4 {[%emt 0:00:06]} 81. Ke2 {[%emt 0:00:09]} Ke4 {[%emt 0:00:02]} 82. Qc4+ {[%emt 0:00:04]} Kf5 {[%emt 0:00:07]} 83. Qd4 {[%emt 0:00:04]} Kg5 {[%emt 0:00:03]} 84. Qe4 {[%emt 0:00:04]} Kh5 {[%emt 0:00:02]} 85. Qg2 {[%emt 0:00:10]} Kh4 {[%emt 0:00:05]} 86. Kf3 {[%emt 0:00:03]} Kh5 {[%emt 0:00:06]} 87. Qg7 {[%emt 0:00:06]} Kh4 {[%emt 0:00:06]} 88. Qh6# {[%emt 0:00:04]} 1-0

[Event "FIDE WCCC Girls-10 2024"]
[Site "Montesilvano"]
[Date "2024.11.18"]
[Round "3.3"]
[White "Yang, Aimee"]
[Black "Ahmadli, Mehriban"]
[Result "1-0"]
[ECO "E60"]
[WhiteElo "1864"]
[BlackElo "1624"]
[PlyCount "120"]
[EventDate "2024.11.18"]
[EventType "swiss"]
[EventCountry "ITA"]
[TimeControl "5400+30"]

1. d4 {[%emt 0:00:04]} Nf6 {[%emt 0:00:09]} 2. c4 {[%emt 0:00:05]} g6 {[%emt 0:00:12]} 3. g3 {[%emt 0:00:05]} Bg7 {[%emt 0:00:30]} 4. Bg2 {[%emt 0:00:05]} d6 {[%emt 0:00:22]} 5. Nc3 {[%emt 0:00:08]} O-O {[%emt 0:00:53]} 6. Nf3 {[%emt 0:00:13]} Nbd7 {[%emt 0:00:23]} 7. O-O {[%emt 0:00:11]} e6 {[%emt 0:00:06]} 8. e4 {[%emt 0:01:03]} e5 {[%emt 0:04:08]} 9. Re1 {[%emt 0:00:40]} Re8 {[%emt 0:00:41]} 10. b3 {[%emt 0:01:01]} a6 {[%emt 0:10:09]} 11. Bb2 {[%emt 0:02:31]} Rb8 {[%emt 0:01:58]} 12. Qd2 {[%emt 0:06:35]} h5 {[%emt 0:08:17]} 13. Rad1 {[%emt 0:02:06]} b6 {[%emt 0:04:33]} 14. Qc2 {[%emt 0:05:10]} Bb7 {[%emt 0:04:58]} 15. dxe5 {[%emt 0:00:59]} dxe5 {[%emt 0:01:14]} 16. Nd5 {[%emt 0:04:33]} c6 {[%emt 0:09:29]} 17. Nxf6+ {[%emt 0:00:40]} Bxf6 {[%emt 0:00:20]} 18. Bh3 {[%emt 0:00:25]} Bc8 {[%emt 0:03:57]} 19. Rd6 {[%emt 0:00:40]} Be7 {[%emt 0:04:23]} 20. Rd3 {[%emt 0:01:08]} Bf6 {[%emt 0:01:23]} 21. Red1 {[%emt 0:00:19]} Rb7 {[%emt 0:00:59]} 22. Qd2 {[%emt 0:01:41]} Re7 {[%emt 0:01:12]} 23. Rd6 {[%emt 0:02:49]} Qc7 {[%emt 0:06:28]} 24. Qc1 {[%emt 0:01:48]} Bg7 {[%emt 0:04:00]} 25. Qg5 {[%emt 0:01:29]} Nf8 {[%emt 0:13:11]} 26. Bxc8 {[%emt 0:01:05]} f6 {[%emt 0:01:13]} 27. Rxf6 {[%emt 0:02:28]} Bxf6 {[%emt 0:05:12]} 28. Qxf6 {[%emt 0:00:04]} Qxc8 {[%emt 0:07:12]} 29. Bxe5 {[%emt 0:00:39]} Rxe5 {[%emt 0:01:56]} 30. Nxe5 {[%emt 0:00:20]} Qe6 {[%emt 0:00:54]} 31. Qxe6+ {[%emt 0:00:13]} Nxe6 {[%emt 0:00:01]} 32. Nxc6 {[%emt 0:00:28]} Rc7 {[%emt 0:00:58]} 33. Ne5 {[%emt 0:00:28]} Nc5 {[%emt 0:03:24]} 34. f3 {[%emt 0:00:38]} g5 {[%emt 0:00:31]} 35. Rd6 {[%emt 0:00:18]} b5 {[%emt 0:00:10]} 36. cxb5 {[%emt 0:00:28]} axb5 {[%emt 0:00:01]} 37. Rc6 {[%emt 0:00:14]} Rxc6 {[%emt 0:00:11]} 38. Nxc6 {[%emt 0:00:10]} Kf7 {[%emt 0:00:23]} 39. Kf2 {[%emt 0:00:13]} Ke8 {[%emt 0:00:13]} 40. Ke3 {[%emt 0:00:18]} Kd7 {[%emt 0:00:05]} 41. Nd4 {[%emt 0:00:12]} b4 {[%emt 0:00:11]} 42. Nc2 {[%emt 0:00:14]} Na6 {[%emt 0:00:04]} 43. Kd4 {[%emt 0:00:19]} h4 {[%emt 0:00:28]} 44. f4 {[%emt 0:00:19]} gxf4 {[%emt 0:00:11]} 45. gxf4 {[%emt 0:00:13]} Nc7 {[%emt 0:00:06]} 46. Nxb4 {[%emt 0:00:16]} Ne6+ {[%emt 0:00:09]} 47. Ke3 {[%emt 0:00:08]} Ng7 {[%emt 0:00:31]} 48. f5 {[%emt 0:00:15]} Nh5 {[%emt 0:00:04]} 49. e5 {[%emt 0:00:25]} Ke7 {[%emt 0:00:33]} 50. Nd5+ {[%emt 0:00:22]} Kf7 {[%emt 0:00:13]} 51. a4 {[%emt 0:00:13]} Ng7 {[%emt 0:00:08]} 52. Ke4 {[%emt 0:00:09]} h3 {[%emt 0:00:11]} 53. a5 {[%emt 0:00:16]} Nh5 {[%emt 0:00:09]} 54. a6 {[%emt 0:00:24]} Ng3+ {[%emt 0:00:02]} 55. Kf3 {[%emt 1:09:43]} Nxf5 {[%emt 0:00:12]} 56. a7 {[%emt 0:00:00]} Nd4+ {[%emt 0:00:06]} 57. Ke4 {[%emt 0:00:00]} Nxb3 {[%emt 0:00:10]} 58. a8=Q {[%emt 0:01:30]} Nc5+ {[%emt 0:00:15]} 59. Ke3 {[%emt 0:00:00]} Ke6 {[%emt 0:00:07]} 60. Nf4+ {[%emt 0:00:00]} Kxe5 {[%emt 0:00:05]} 1-0

[Event "FIDE WCCC Girls-10 2024"]
[Site "Montesilvano"]
[Date "2024.11.18"]
[Round "3.4"]
[White "Nandinjiguur, Chinzorig"]
[Black "Pooja Shree R"]
[Result "1-0"]
[ECO "E91"]
[WhiteElo "1807"]
[BlackElo "1615"]
[PlyCount "117"]
[EventDate "2024.11.18"]
[EventType "swiss"]
[EventCountry "ITA"]
[TimeControl "5400+30"]

1. d4 {[%emt 0:00:02]} Nf6 {[%emt 0:00:25]} 2. c4 {[%emt 0:00:13]} g6 {[%emt 0:00:05]} 3. Nc3 {[%emt 0:00:12]} Bg7 {[%emt 0:00:10]} 4. e4 {[%emt 0:00:13]} d6 {[%emt 0:00:06]} 5. Nf3 {[%emt 0:00:22]} O-O {[%emt 0:00:28]} 6. Be2 {[%emt 0:00:22]} Re8 {[%emt 0:06:46]} 7. O-O {[%emt 0:01:09]} e5 {[%emt 0:00:48]} 8. d5 {[%emt 0:07:37]} a5 {[%emt 0:02:49]} 9. Qc2 {[%emt 0:03:39]} Na6 {[%emt 0:02:15]} 10. a3 {[%emt 1:21:41]} h6 {[%emt 0:16:41]} 11. Be3 {[%emt 0:00:00]} Bd7 {[%emt 0:10:33]} 12. Rfb1 {[%emt 0:00:00]} a4 {[%emt 0:11:12]} 13. Nd2 {[%emt 0:00:00]} Nc5 {[%emt 0:16:41]} 14. b4 {[%emt 0:00:00]} axb3 {[%emt 0:00:39]} 15. Nxb3 {[%emt 0:00:00]} Nxb3 {[%emt 0:02:11]} 16. Rxb3 {[%emt 0:00:00]} b6 {[%emt 0:00:26]} 17. a4 {[%emt 0:00:00]} Ng4 {[%emt 0:02:29]} 18. Bxg4 {[%emt 0:00:00]} Bxg4 {[%emt 0:00:03]} 19. Qd2 {[%emt 0:00:00]} Kh7 {[%emt 0:01:21]} 20. Nb5 {[%emt 0:00:00]} f5 {[%emt 0:01:26]} 21. f3 {[%emt 0:00:00]} Bh5 {[%emt 0:00:24]} 22. a5 {[%emt 0:00:00]} f4 {[%emt 0:02:25]} 23. Bf2 {[%emt 0:00:00]} g5 {[%emt 0:01:59]} 24. Qe1 {[%emt 0:00:00]} g4 {[%emt 0:05:09]} 25. fxg4 {[%emt 0:00:00]} Bxg4 {[%emt 0:02:52]} 26. axb6 {[%emt 0:00:00]} Rxa1 {[%emt 0:00:47]} 27. Qxa1 {[%emt 0:00:00]} cxb6 {[%emt 0:00:19]} 28. Qa6 {[%emt 0:00:00]} Bd1 {[%emt 0:01:12]} 29. Rh3 {[%emt 0:00:00]} f3 {[%emt 0:03:43]} 30. Rg3 {[%emt 0:00:00]} Be2 {[%emt 0:03:25]} 31. Qxb6 {[%emt 0:00:00]} Qf6 {[%emt 0:03:47]} 32. Qxd6 {[%emt 0:00:00]} Ra8 {[%emt 0:01:02]} 33. h3 {[%emt 0:00:00]} Ra1+ {[%emt 0:00:15]} 34. Kh2 {[%emt 0:00:00]} fxg2 {[%emt 0:01:53]} 35. Qxf6 {[%emt 0:00:00]} Bxf6 {[%emt 0:00:11]} 36. Kxg2 {[%emt 0:00:00]} Bxc4 {[%emt 0:00:51]} 37. Nd6 {[%emt 0:00:00]} Bf1+ {[%emt 0:00:20]} 38. Kf3 {[%emt 0:01:08]} Bh4 {[%emt 0:00:49]} 39. Rg1 {[%emt 0:03:41]} Bg5 {[%emt 0:00:28]} 40. Nc4 {[%emt 0:02:44]} Rc1 {[%emt 0:00:31]} 41. Ne3 {[%emt 0:00:49]} Bxe3 {[%emt 0:00:27]} 42. Bxe3 {[%emt 0:00:19]} Rb1 {[%emt 0:00:14]} 43. Kf2 {[%emt 0:02:03]} Bd3 {[%emt 0:00:07]} 44. Rxb1 {[%emt 0:00:06]} Bxb1 {[%emt 0:00:07]} 45. d6 {[%emt 0:00:06]} Bxe4 {[%emt 0:00:11]} 46. d7 {[%emt 0:07:04]} Kg6 {[%emt 0:00:06]} 47. d8=Q {[%emt 0:00:30]} Bf5 {[%emt 0:00:07]} 48. Qd6+ {[%emt 0:00:00]} Kf7 {[%emt 0:00:06]} 49. Qxh6 {[%emt 0:00:00]} e4 {[%emt 0:00:09]} 50. Qf4 {[%emt 0:00:00]} Ke6 {[%emt 0:00:09]} 51. h4 {[%emt 0:00:00]} Bh7 {[%emt 0:00:07]} 52. Qh6+ {[%emt 0:00:00]} Kd5 {[%emt 0:00:12]} 53. Qxh7 {[%emt 0:00:00]} Ke5 {[%emt 0:00:05]} 54. Qc7+ {[%emt 0:00:00]} Ke6 {[%emt 0:00:04]} 55. Qc4+ {[%emt 0:00:00]} Ke7 {[%emt 0:00:05]} 56. Qxe4+ {[%emt 0:00:00]} Kf7 {[%emt 0:00:06]} 57. Bd4 {[%emt 0:00:00]} Kg8 {[%emt 0:00:10]} 58. Qg6+ {[%emt 0:00:00]} Kf8 {[%emt 0:00:10]} 59. Bc5# {[%emt 0:00:00]} 1-0

[Event "FIDE WCCC Girls-10 2024"]
[Site "Montesilvano"]
[Date "2024.11.18"]
[Round "3.5"]
[White "Peng, Jingyi(Gd)"]
[Black "Xin, Lisa J."]
[Result "1-0"]
[ECO "D13"]
[WhiteElo "1720"]
[BlackElo "1602"]
[PlyCount "43"]
[EventDate "2024.11.18"]
[EventType "swiss"]
[EventCountry "ITA"]
[TimeControl "5400+30"]

1. Nf3 {[%emt 0:00:03]} d5 {[%emt 0:00:12]} 2. c4 {[%emt 0:00:06]} c6 {[%emt 0:00:04]} 3. cxd5 {[%emt 0:02:25]} cxd5 {[%emt 0:00:09]} 4. d4 {[%emt 0:00:04]} Nc6 {[%emt 0:00:32]} 5. Bf4 {[%emt 0:00:36]} Bf5 {[%emt 0:00:45]} 6. Nc3 {[%emt 0:00:35]} Nf6 {[%emt 0:01:49]} 7. e3 {[%emt 0:00:35]} a6 {[%emt 0:05:54]} 8. Bd3 {[%emt 0:19:57]} Bxd3 {[%emt 0:02:43]} 9. Qxd3 {[%emt 0:00:05]} Nb4 {[%emt 0:02:25]} 10. Qd1 {[%emt 0:01:58]} Rc8 {[%emt 0:06:59]} 11. O-O {[%emt 0:01:16]} Nc6 {[%emt 0:07:36]} 12. Ne5 {[%emt 0:00:43]} Nxe5 {[%emt 0:05:21]} 13. dxe5 {[%emt 0:00:56]} Ne4 {[%emt 0:06:51]} 14. Nxe4 {[%emt 0:08:28]} dxe4 {[%emt 0:00:24]} 15. Qb3 {[%emt 0:05:01]} b5 {[%emt 0:11:53]} 16. e6 {[%emt 0:01:03]} f6 {[%emt 0:01:16]} 17. Rfd1 {[%emt 0:00:17]} Qb6 {[%emt 0:00:40]} 18. Qd5 {[%emt 0:04:23]} Rd8 {[%emt 0:02:32]} 19. Qxe4 {[%emt 0:00:16]} g5 {[%emt 0:15:14]} 20. Rxd8+ {[%emt 0:00:07]} Kxd8 {[%emt 0:00:13]} 21. Qa8+ {[%emt 0:00:05]} Qb8 {[%emt 0:00:18]} 22. Qxb8# {[%emt 0:00:06]} 1-0

[Event "FIDE WCCC Girls-10 2024"]
[Site "Montesilvano"]
[Date "2024.11.18"]
[Round "3.6"]
[White "Artemenko, Isabella"]
[Black "Anistoroaei, Maria"]
[Result "1/2-1/2"]
[ECO "B25"]
[WhiteElo "1637"]
[BlackElo "1715"]
[PlyCount "181"]
[EventDate "2024.11.18"]
[EventType "swiss"]
[EventCountry "ITA"]
[TimeControl "5400+30"]

1. e4 {[%emt 0:00:02]} c5 {[%emt 0:00:07]} 2. Nc3 {[%emt 0:00:04]} Nc6 {[%emt 0:00:05]} 3. g3 {[%emt 0:00:05]} g6 {[%emt 0:00:06]} 4. Bg2 {[%emt 0:00:05]} Bg7 {[%emt 0:00:06]} 5. d3 {[%emt 0:00:05]} d6 {[%emt 0:00:07]} 6. f4 {[%emt 0:00:07]} e6 {[%emt 0:00:18]} 7. Nf3 {[%emt 0:00:07]} Nge7 {[%emt 0:00:19]} 8. O-O {[%emt 0:00:13]} O-O {[%emt 0:00:11]} 9. Be3 {[%emt 0:00:23]} Nd4 {[%emt 0:00:10]} 10. e5 {[%emt 0:00:10]} dxe5 {[%emt 0:09:16]} 11. Nxe5 {[%emt 0:00:13]} Rb8 {[%emt 0:02:29]} 12. g4 {[%emt 0:31:37]} b5 {[%emt 0:05:46]} 13. Ne2 {[%emt 0:05:49]} Bb7 {[%emt 0:02:11]} 14. Bxb7 {[%emt 0:04:51]} Rxb7 {[%emt 0:00:55]} 15. c3 {[%emt 0:02:10]} Nxe2+ {[%emt 0:02:19]} 16. Qxe2 {[%emt 0:00:03]} Qd5 {[%emt 0:04:24]} 17. d4 {[%emt 0:12:06]} cxd4 {[%emt 0:02:53]} 18. Bxd4 {[%emt 0:01:23]} b4 {[%emt 0:03:53]} 19. Rfd1 {[%emt 0:03:54]} Qa5 {[%emt 0:06:25]} 20. cxb4 {[%emt 0:03:40]} Qxb4 {[%emt 0:01:27]} 21. a3 {[%emt 0:01:37]} Qa4 {[%emt 0:02:27]} 22. b4 {[%emt 0:11:25]} Rc7 {[%emt 0:03:36]} 23. Nf3 {[%emt 0:07:48]} Bxd4+ {[%emt 0:04:29]} 24. Nxd4 {[%emt 0:00:48]} Nc6 {[%emt 0:04:28]} 25. Nf3 {[%emt 0:03:32]} Qb3 {[%emt 0:04:44]} 26. Rdb1 {[%emt 0:01:41]} Qc3 {[%emt 0:03:35]} 27. Rc1 {[%emt 0:00:09]} Nd4 {[%emt 0:01:54]} 28. Nxd4 {[%emt 0:00:38]} Qxd4+ {[%emt 0:00:40]} 29. Qf2 {[%emt 0:00:07]} Qxf2+ {[%emt 0:07:11]} 30. Kxf2 {[%emt 0:00:09]} Rfc8 {[%emt 0:00:09]} 31. Re1 {[%emt 0:01:01]} Rc2+ {[%emt 0:01:15]} 32. Kg1 {[%emt 0:01:06]} R8c4 {[%emt 0:01:21]} 33. Rf1 {[%emt 0:01:35]} Re2 {[%emt 0:02:24]} 34. Rac1 {[%emt 0:02:43]} Rxc1 {[%emt 0:06:04]} 35. Rxc1 {[%emt 0:00:05]} Re3 {[%emt 0:00:08]} 36. a4 {[%emt 0:02:05]} Re4 {[%emt 0:01:33]} 37. Rc8+ {[%emt 0:01:02]} Kg7 {[%emt 0:00:25]} 38. Rc7 {[%emt 0:00:20]} Rxb4 {[%emt 0:01:06]} 39. Rxa7 {[%emt 0:00:04]} Rxf4 {[%emt 0:00:16]} 40. h3 {[%emt 0:00:03]} Kf6 {[%emt 0:02:11]} 41. a5 {[%emt 0:00:23]} Ke5 {[%emt 0:01:01]} 42. Rd7 {[%emt 0:01:24]} Kf6 {[%emt 0:01:50]} 43. a6 {[%emt 0:00:29]} Ra4 {[%emt 0:00:51]} 44. a7 {[%emt 0:00:03]} e5 {[%emt 0:02:40]} 45. Kf2 {[%emt 0:01:57]} Ra3 {[%emt 0:01:43]} 46. h4 {[%emt 0:00:27]} Ke6 {[%emt 0:02:37]} 47. Rb7 {[%emt 0:00:05]} h6 {[%emt 0:01:57]} 48. Ke2 {[%emt 0:00:23]} h5 {[%emt 0:03:36]} 49. g5 {[%emt 0:00:14]} e4 {[%emt 0:03:33]} 50. Rb6+ {[%emt 0:00:37]} Kf5 {[%emt 0:00:30]} 51. Rf6+ {[%emt 0:00:10]} Kg4 {[%emt 0:00:21]} 52. Rxf7 {[%emt 0:00:08]} Kxh4 {[%emt 0:00:16]} 53. Re7 {[%emt 0:01:26]} Kxg5 {[%emt 0:00:20]} 54. Rxe4 {[%emt 0:01:03]} Rxa7 {[%emt 0:00:10]} 55. Kf3 {[%emt 0:00:49]} Ra3+ {[%emt 0:01:44]} 56. Kg2 {[%emt 0:00:11]} Ra5 {[%emt 0:00:49]} 57. Kg3 {[%emt 0:00:34]} Rf5 {[%emt 0:00:22]} 58. Rb4 {[%emt 0:00:45]} h4+ {[%emt 0:00:52]} 59. Kh3 {[%emt 0:00:36]} Rf3+ {[%emt 0:00:13]} 60. Kg2 {[%emt 0:00:09]} Rf4 {[%emt 0:00:17]} 61. Rb5+ {[%emt 0:00:20]} Kg4 {[%emt 0:00:17]} 62. Rb6 {[%emt 0:00:16]} g5 {[%emt 0:00:34]} 63. Rb5 {[%emt 0:00:16]} Rd4 {[%emt 0:00:50]} 64. Rb2 {[%emt 0:00:24]} h3+ {[%emt 0:00:44]} 65. Kh2 {[%emt 0:00:21]} Kh4 {[%emt 0:00:20]} 66. Rc2 {[%emt 0:00:33]} g4 {[%emt 0:00:25]} 67. Rc1 {[%emt 0:00:39]} Rd2+ {[%emt 0:00:54]} 68. Kh1 {[%emt 0:00:14]} Rf2 {[%emt 0:00:27]} 69. Kg1 {[%emt 0:00:27]} Kg3 {[%emt 0:00:15]} 70. Rc3+ {[%emt 0:00:08]} Rf3 {[%emt 0:00:08]} 71. Rc1 {[%emt 0:00:09]} Re3 {[%emt 0:00:48]} 72. Ra1 {[%emt 0:00:29]} Rf3 {[%emt 0:01:01]} 73. Rc1 {[%emt 0:00:15]} Rd3 {[%emt 0:00:35]} 74. Ra1 {[%emt 0:00:43]} Kf3 {[%emt 0:00:18]} 75. Rb1 {[%emt 0:00:53]} Ke2 {[%emt 0:00:44]} 76. Kh2 {[%emt 0:01:01]} Ke3 {[%emt 0:00:30]} 77. Kg3 {[%emt 0:01:43]} Rd4 {[%emt 0:00:33]} 78. Ra1 {[%emt 0:00:39]} Ke2 {[%emt 0:00:25]} 79. Ra2+ {[%emt 0:00:17]} Rd2 {[%emt 0:00:34]} 80. Ra1 {[%emt 0:00:23]} Rd1 {[%emt 0:00:26]} 81. Ra2+ {[%emt 0:00:05]} Rd2 {[%emt 0:00:10]} 82. Ra1 {[%emt 0:00:02]} Rd4 {[%emt 0:00:48]} 83. Ra2+ {[%emt 0:00:05]} Ke1 {[%emt 0:00:22]} 84. Ra1+ {[%emt 0:00:05]} Rd1 {[%emt 0:00:43]} 85. Ra2 {[%emt 0:00:18]} Rd2 {[%emt 0:00:30]} 86. Ra1+ {[%emt 0:00:04]} Rd1 {[%emt 0:00:28]} 87. Ra2 {[%emt 0:00:05]} Kf1 {[%emt 0:00:31]} 88. Kxg4 {[%emt 0:00:29]} Rd3 {[%emt 0:00:20]} 89. Rh2 {[%emt 0:00:05]} Kg1 {[%emt 0:00:39]} 90. Rxh3 {[%emt 0:00:11]} Rxh3 {[%emt 0:00:09]} 91. Kxh3 {[%emt 0:00:34]} 1/2-1/2